bitfinex-derivatives/quotes_SOLF0:USTF0_20250221
["timestamp","ask_amount","ask_price","bid_price","bid_amount"]
[1740173330826,5.9675,167.67,167.66,0.04460767]
[1740173331021,0.04467613,167.7,167.66,0.04460767]
[1740173331220,24.61420843,167.68,167.42,11.9529]
[1740173331423,24.61420843,167.61,167.56,5.9711]
[1740173332124,30.58400843,167.61,167.56,5.9711]
[1740173332323,0.04315584,167.6,167.57,0.03950035]
[1740173332627,5.9706,167.59,167.57,0.03950035]
[1740173332926,0.04315584,167.6,167.57,0.03950035]
[1740173333623,0.04315584,167.6,167.58,5.9707]
[1740173334431,0.04315584,167.6,167.57,0.03950035]
[1740173336134,0.04315584,167.6,167.57,6.01050035]
[1740173336329,0.04315584,167.6,167.57,0.03950035]
[1740173336528,8.38,167.66,167.57,0.03950035]
[1740173336730,8.38,167.66,167.59,5.9704]
[1740173336930,8.38,167.66,167.54,1.8218]
[1740173337131,8.38,167.66,167.56,19.61]
[1740173337335,8.38,167.74,167.58,24.61420843]
[1740173337733,0.04464053,167.68,167.65,5.968]
[1740173337938,5.9667,167.7,167.65,9.5649]
[1740173338139,0.03854614,167.68,167.65,9.60705127]
[1740173338335,5.9669,167.69,167.65,9.60705127]
[1740173338539,0.03972765,167.68,167.65,9.60705127]
[1740173340742,0.03972765,167.68,167.66,5.9679]
[1740173341342,0.03972765,167.68,167.65,9.60715127]
[1740173342141,0.03972765,167.68,167.66,5.9678]
[1740173343045,0.03972765,167.68,167.65,9.60705127]
[1740173343545,0.03972765,167.68,167.65,3.63905127]
[1740173343843,165.62008021,167.73,167.65,3.63905127]
[1740173344347,5.966,167.72,167.65,3.63905127]
[1740173344543,165.62008021,167.73,167.65,3.63905127]
[1740173344949,6.00425279,167.71,167.67,5.9673]
[1740173345245,165.62008021,167.73,167.65,3.63905127]
[1740173346043,165.62008021,167.73,167.71,5.9658]
[1740173346247,171.58498021,167.75,167.71,5.9658]
[1740173346446,0.03802403,167.74,167.71,5.9658]
[1740173346647,0.03802403,167.74,167.7,0.04254729]
[1740173347347,0.03802403,167.74,167.71,5.9658]
[1740173347653,0.03802403,167.74,167.72,1.7697]
[1740173348553,0.03802403,167.74,167.72,7.7354]
[1740173349356,165.62008021,167.8,167.72,7.7354]
[1740173349551,165.62008021,167.8,167.72,1.7697]
[1740173349753,205.18037688,167.81,167.72,1.7697]
[1740173349754,165.62008021,167.81,167.72,1.7697]
[1740173350254,5.9639,167.78,167.74,5.965]
[1740173350454,165.62008021,167.81,167.73,1.8326]
[1740173350659,0.03932427,167.78,167.75,5.9644]
[1740173350854,165.62008021,167.81,167.74,0.03850179]
[1740173351457,165.62008021,167.83,167.74,0.03850179]
[1740173352055,0.04203191,167.8,167.74,0.03850179]
[1740173352350,159.94968021,167.83,167.75,24.61420843]
[1740173352856,159.94968021,167.83,167.81,5.9623]
[1740173353455,159.94968021,167.83,167.75,24.61420843]
[1740173353756,159.94968021,167.83,167.8,0.04266412]
[1740173354550,159.94968021,167.83,167.82,5.9622]
[1740173354551,154.28148021,167.83,167.82,5.9622]
[1740173354751,151.44778021,167.83,167.82,5.9622]
[1740173354955,151.44778021,167.83,167.8,1.79446412]
[1740173354956,0.04258185,167.84,167.8,1.79446412]
[1740173355456,0.04258185,167.84,167.83,5.9618]
[1740173356052,0.04258185,167.84,167.8,1.79446412]
[1740173356655,5.9621,167.83,167.8,1.79446412]
[1740173357158,0.04258185,167.84,167.83,5.9618]
[1740173357354,0.04258185,167.84,167.8,1.79446412]
[1740173357759,0.04258185,167.84,167.81,5.9622]
[1740173358153,0.04258185,167.84,167.8,1.79446412]
[1740173358353,0.04258185,167.84,167.81,5.9625]
[1740173358756,8.36,167.94,167.8,1.79446412]
[1740173359061,1.00530989,167.93,167.8,1.7518]
[1740173359261,8.36,167.94,167.8,1.7518]
[1740173359457,1.00524922,167.93,167.8,1.7518]
[1740173359858,1.00524922,167.93,167.8,5.2145]
[1740173360159,0.0442889,167.88,167.85,0.04182778]
[1740173360355,5.9608,167.86,167.85,0.04182778]
[1740173362364,0.0442889,167.88,167.73,3.5083]
[1740173362564,1.8673,167.87,167.73,3.5083]
[1740173362761,5.9639,167.78,167.73,9.4733]
[1740173362963,8.36,167.82,167.72,7.06]
[1740173363465,5.9644,167.76,167.75,0.04516093]
[1740173363659,0.0401255,167.79,167.75,0.04516093]
[1740173363866,5.9638,167.78,167.75,0.04516093]
[1740173364065,0.0401255,167.79,167.75,0.04516093]
[1740173365265,5.9643,167.76,167.75,0.04516093]
[1740173367860,5.9642,167.77,167.75,0.04516093]
[1740173368060,0.0401255,167.79,167.75,0.04516093]
[1740173368467,5.9643,167.76,167.75,0.04516093]
[1740173370568,1.8937255,167.79,167.75,0.04516093]
[1740173371263,5.9643,167.77,167.75,0.04516093]
[1740173371670,6.0034255,167.79,167.75,6.00976093]
[1740173372060,0.0401255,167.79,167.75,6.00976093]
[1740173372261,0.0401255,167.79,167.75,0.04516093]
[1740173372869,5.9643,167.76,167.75,0.04516093]
[1740173375977,1.00343326,167.76,167.69,13.67]
[1740173376170,0.0401255,167.79,167.69,13.67]
[1740173376374,1.003387,167.79,167.69,13.67]
[1740173376871,1.00316404,167.78,167.69,13.67]
[1740173377072,1.00316404,167.77,167.69,13.67]
[1740173377274,5.9654,167.73,167.72,0.04410281]
[1740173379467,0.03860057,167.75,167.72,0.04410281]
[1740173379672,0.03860057,167.75,167.74,5.965]
[1740173379866,0.03860057,167.75,167.72,0.04410281]
[1740173380264,0.03860057,167.75,167.74,5.965]
[1740173381172,0.03860057,167.75,167.72,0.04410281]
[1740173381367,0.03860057,167.75,167.73,5.9652]
[1740173382776,0.03860057,167.75,167.74,5.965]
[1740173383575,0.03860057,167.75,167.72,0.04410281]
[1740173383971,5.9654,167.74,167.72,0.04410281]
[1740173384275,0.03860057,167.75,167.72,0.04410281]
[1740173384475,5.9654,167.73,167.72,0.04410281]
[1740173389082,24.652809,167.75,167.66,13.32]
[1740173389270,5.9673,167.68,167.66,13.32]
[1740173389675,5.9673,167.68,167.61,1.8319]
[1740173389876,8.3,167.73,167.61,1.8319]
[1740173389877,5.9675,167.67,167.61,1.8319]
[1740173390077,8.3,167.73,167.61,1.8319]
[1740173390278,0.04106618,167.67,167.64,0.8228213]
[1740173390474,0.04106618,167.67,167.44,216.61420843]
[1740173390682,24.61420843,167.67,167.5,1.7107]
[1740173390973,3.6727,167.66,167.51,3.5867]
[1740173391175,24.61420843,167.63,167.51,3.5867]
[1740173391380,32.91420843,167.63,167.53,5.9724]
[1740173391582,5.9708,167.58,167.53,5.9724]
[1740173391776,0.04271952,167.6,167.56,0.04113084]
[1740173391977,32.91420843,167.63,167.56,0.04113084]
[1740173392178,0.04317117,167.6,167.56,0.04113084]
[1740173393086,5.971,167.58,167.56,0.04113084]
[1740173393278,0.04317117,167.6,167.56,0.04113084]
[1740173394276,5.9711,167.57,167.56,0.04113084]
[1740173398383,0.04317117,167.6,167.56,0.04113084]
[1740173399289,5.9711,167.57,167.56,0.04113084]
[1740173399990,17.84,167.55,167.47,33.52]
[1740173400182,24.61420843,167.48,167.38,5.3863]
[1740173400388,24.61420843,167.44,167.38,5.3863]
[1740173400693,24.61420843,167.48,167.38,5.3863]
[1740173400891,5.9753,167.46,167.38,5.3863]
[1740173401087,8.28,167.49,167.3,42.55580843]
[1740173401088,0.04518018,167.45,167.41,6.01836311]
[1740173401283,8.28,167.49,167.32,24.61420843]
[1740173401490,0.04454866,167.45,167.41,0.03894158]
[1740173401692,0.04454866,167.45,167.42,5.9764]
[1740173402190,0.04454866,167.45,167.41,0.03894158]
[1740173402686,8.28,167.49,167.41,0.03894158]
[1740173403292,49.22841686,167.44,167.2,165.52351156]
[1740173403588,54.40000843,167.52,167.34,24.61420843]
[1740173403589,1.19410114,167.49,167.34,24.61420843]
[1740173403791,1.19410114,167.49,167.35,3.516]
[1740173403995,8.34,167.51,167.35,3.516]
[1740173404190,32.95420843,167.51,167.35,3.516]
[1740173404397,0.04377014,167.45,167.41,0.04279135]
[1740173405795,0.04377014,167.45,167.41,6.01959135]
[1740173405995,8.34,167.51,167.41,0.04279135]
[1740173406195,163.95631946,167.59,167.43,24.61420843]
[1740173406389,9.36131394,167.58,167.44,1.7589]
[1740173406590,8.36,167.58,167.44,1.7589]
[1740173406795,5.9721,167.55,167.44,1.7589]
[1740173406998,24.61420843,167.51,167.1,29.9392]
[1740173407195,24.65650194,167.51,167.48,0.04419946]
[1740173407399,8.36,167.58,167.42,24.61420843]
[1740173407597,0.04553999,167.51,167.48,0.04029858]
[1740173407896,1.00143626,167.57,167.48,0.04029858]
[1740173408094,0.04185601,167.51,167.48,0.04029858]
[1740173408288,8.36,167.58,167.48,0.04029858]
[1740173408494,0.04001786,167.51,167.48,0.04029858]
[1740173408696,8.36,167.58,167.48,0.04029858]
[1740173408889,8.36,167.58,167.49,5.9736]
[1740173409091,0.04050889,167.55,167.46,24.61420843]
[1740173409289,0.04050889,167.55,167.52,0.04350289]
[1740173410093,24.65471732,167.55,167.26,17.85]
[1740173410292,1.00154497,167.54,167.36,24.61420843]
[1740173410498,1.00154497,167.53,167.4,24.61420843]
[1740173410801,8.36,167.58,167.44,24.61420843]
[1740173410998,1.0015631,167.57,167.44,24.61420843]
[1740173411197,0.03983765,167.53,167.49,0.04058238]
[1740173411902,5.9729,167.52,167.49,0.04058238]
[1740173412101,0.03983765,167.53,167.49,0.04058238]
[1740173412298,6.01233765,167.53,167.49,0.04058238]
[1740173412803,0.03983765,167.53,167.49,0.04058238]
[1740173412993,5.9729,167.52,167.49,0.04058238]
[1740173413394,0.03983765,167.53,167.49,0.04058238]
[1740173413598,6.01233765,167.53,167.49,0.04058238]
[1740173414611,0.03983765,167.53,167.49,0.04058238]
[1740173415212,0.03983765,167.53,167.5,5.9732]
[1740173415405,0.03983765,167.53,167.49,0.04058238]
[1740173416213,0.03983765,167.53,167.49,6.01418238]
[1740173416411,0.03983765,167.53,167.49,0.04058238]
[1740173416807,5.9729,167.52,167.49,0.04058238]
[1740173417210,0.03983765,167.53,167.49,0.04058238]
[1740173417410,5.9736,167.5,167.49,0.04058238]
[1740173419515,8.4,167.5,167.41,3.5448]
[1740173419715,5.976,167.44,167.41,3.5448]
[1740173419909,8.4,167.5,167.41,1.7042]
[1740173420111,1.00276442,167.49,167.41,1.7042]
[1740173420409,1.00276442,167.49,167.31,0.74593048]
[1740173420410,1.00276442,167.49,167.32,24.61420843]
[1740173420619,1.00265989,167.48,167.33,1.7455]
[1740173420812,0.03876551,167.42,167.41,5.9765]
[1740173421211,1.00279817,167.49,167.4,0.04509081]
[1740173421410,0.04444376,167.43,167.4,0.04509081]
[1740173421811,5.9764,167.42,167.4,0.04509081]
[1740173422215,0.04444376,167.43,167.4,0.04509081]
[1740173422417,5.9768,167.41,167.4,0.04509081]
[1740173422613,0.04444376,167.43,167.32,3.583]
[1740173422812,5.9786,167.36,167.32,3.583]
[1740173423317,5.9789,167.36,167.32,3.583]
[1740173423911,5.979,167.35,167.32,3.60819773]
[1740173424213,0.04379241,167.36,167.32,3.60819773]
[1740173424712,0.04379241,167.36,167.32,1.90399773]
[1740173424918,6.02239241,167.36,167.32,1.90399773]
[1740173425315,0.04379241,167.36,167.32,1.90399773]
[1740173426220,0.04379241,167.36,167.33,5.9796]
[1740173426416,0.04379241,167.36,167.32,1.90399773]
[1740173428518,5.9793,167.34,167.32,1.90399773]
[1740173429123,5.979,167.35,167.32,1.90399773]
[1740173429320,0.04379241,167.36,167.32,1.90399773]
[1740173429818,5.9793,167.34,167.32,1.90399773]
[1740173430616,0.04379241,167.36,167.32,1.90399773]
[1740173430818,6.02249241,167.36,167.32,1.90399773]
[1740173431724,0.04379241,167.36,167.32,0.02519773]
[1740173432326,5.979,167.35,167.32,0.02519773]
[1740173432724,0.04379241,167.36,167.32,0.02519773]
[1740173433321,5.9792,167.35,167.32,0.02519773]
[1740173433519,0.04379241,167.36,167.32,0.02519773]
[1740173433825,5.9796,167.33,167.32,0.02519773]
[1740173434724,5.9793,167.34,167.32,0.02519773]
[1740173435028,0.04379241,167.36,167.32,0.02519773]
[1740173436528,6.02239241,167.36,167.32,3.74909773]
[1740173437029,0.04379241,167.36,167.32,3.74909773]
[1740173437724,5.9791,167.35,167.32,0.02519773]
[1740173437928,0.04379241,167.36,167.32,0.02519773]
[1740173438120,5.979,167.35,167.32,0.02519773]
[1740173438425,0.04379241,167.36,167.32,0.02519773]
[1740173439226,5.9796,167.33,167.32,0.02519773]
[1740173440520,8.52,167.33,167.21,74.65078558]
[1740173440726,25.61579498,167.32,167.22,5.2179]
[1740173440922,24.61420843,167.32,167.22,5.2179]
[1740173441334,24.61420843,167.32,167.22,11.2013]
[1740173441631,5.9809,167.3,167.22,5.2179]
[1740173441826,0.04314449,167.29,167.22,5.2179]
[1740173442234,5.9816,167.28,167.22,5.2179]
[1740173442430,0.04314449,167.29,167.22,5.2179]
[1740173442829,5.9822,167.26,167.22,5.2179]
[1740173443132,0.04314449,167.29,167.22,5.2179]
[1740173443524,5.9818,167.27,167.22,5.2179]
[1740173443924,0.04314449,167.29,167.22,5.2179]
[1740173444635,0.04314449,167.29,167.22,11.2011]
[1740173444831,0.04314449,167.29,167.22,5.2179]
[1740173445228,163.95631946,167.35,167.22,5.2179]
[1740173445432,163.95631946,167.35,167.24,24.61420843]
[1740173445632,163.95631946,167.36,167.24,24.61420843]
[1740173445833,163.95631946,167.36,167.22,5.2179]
[1740173446437,0.04023736,167.31,167.27,0.04314449]
[1740173446826,5.9808,167.3,167.27,0.04314449]
[1740173447036,0.04023736,167.31,167.27,0.04314449]
[1740173447329,163.95631946,167.36,167.27,0.04314449]
[1740173447528,24.61420843,167.6,167.29,24.61420843]
[1740173447529,163.95631946,167.39,167.29,24.61420843]
[1740173447735,4.66,167.37,167.29,24.61420843]
[1740173447932,4.66,167.37,167.26,24.61420843]
[1740173448327,4.66,167.37,167.29,24.61420843]
[1740173448525,163.95631946,167.39,167.3,0.03942993]
[1740173448734,1.755e-05,167.33,167.3,0.03942993]
[1740173448930,1.755e-05,167.33,167.32,5.98]
[1740173453641,1.755e-05,167.33,167.32,9.4741]
[1740173460041,1.755e-05,167.33,167.32,24.91591753]
[1740173460843,1.755e-05,167.33,167.32,9.4741]
[1740173461845,1.755e-05,167.33,167.32,3.4941]
[1740173462840,1.755e-05,167.33,167.3,0.03942993]
[1740173463244,5.98,167.32,167.3,0.03942993]
[1740173463647,1.755e-05,167.33,167.3,0.03942993]
[1740173464241,1.755e-05,167.33,167.24,14.94]
[1740173464242,8.56001755,167.33,167.24,14.94]
[1740173464443,15.44181753,167.31,167.24,14.94]
[1740173464740,8.56,167.33,167.24,14.94]
[1740173465550,8.56,167.33,167.27,0.04453401]
[1740173465551,0.04179525,167.3,167.27,0.04453401]
[1740173465854,5.9811,167.29,167.27,0.04453401]
[1740173466146,0.04179525,167.3,167.27,0.04453401]
[1740173466347,6.02249525,167.3,167.27,0.04453401]
[1740173466647,0.04179525,167.3,167.27,0.04453401]
[1740173467541,163.95631946,167.34,167.27,3.53903401]
[1740173467740,163.95631946,167.34,167.28,1.841]
[1740173468241,5.9784,167.37,167.28,1.841]
[1740173468242,163.95631946,167.37,167.28,1.841]
[1740173468545,163.95631946,167.37,167.32,5.9797]
[1740173468747,0.03972682,167.34,167.32,5.9797]
[1740173468946,163.95631946,167.37,167.31,0.04305827]
[1740173470047,45.44684005,167.42,167.31,0.04305827]
[1740173470244,0.03804997,167.36,167.31,0.04305827]
[1740173470551,0.03804997,167.36,167.28,1.841]
[1740173470552,0.03804997,167.36,167.32,0.04427711]
[1740173471846,20.7,167.42,167.35,24.74684005]
[1740173472050,20.7,167.42,167.39,5.9774]
[1740173472251,181.67631946,167.43,167.36,1.8157]
[1740173472549,181.67631946,167.43,167.36,7.7939]
[1740173472851,181.67631946,167.43,167.36,1.8157]
[1740173473051,0.03987961,167.41,167.38,0.04066796]
[1740173473548,181.67631946,167.43,167.38,0.04066796]
[1740173474145,17.72,167.43,167.38,0.04066796]
[1740173474348,17.72,167.43,167.42,5.9764]
[1740173474554,9.765e-05,167.42,167.38,24.78750801]
[1740173475448,9.765e-05,167.42,167.41,30.72364005]
[1740173475655,14.92,167.48,167.41,24.74684005]
[1740173475848,14.92,167.48,167.44,24.74684005]
[1740173475849,5.6476,167.48,167.44,24.74684005]
[1740173476055,163.95631946,167.51,167.44,24.74684005]
[1740173476245,163.95631946,167.51,167.47,24.74684005]
[1740173476447,163.95631946,167.51,167.5,5.9736]
[1740173476648,130.75311946,167.56,167.49,0.04569079]
[1740173476850,2.72e-05,167.52,167.49,0.04569079]
[1740173477044,2.72e-05,167.52,167.51,5.9732]
[1740173477852,2.72e-05,167.52,167.49,0.04569079]
[1740173478454,2.72e-05,167.52,167.49,6.01959079]
[1740173478656,2.72e-05,167.52,167.5,24.74684005]
[1740173479054,2.72e-05,167.52,167.49,0.04569079]
[1740173481651,2.72e-05,167.52,167.5,5.9735]
[1740173482157,13.94,167.59,167.56,5.9713]
[1740173482454,13.94,167.59,167.54,24.74684005]
[1740173483559,0.03991415,167.58,167.56,5.9713]
[1740173483853,0.03991415,167.58,167.55,0.04408721]
[1740173484554,0.03991415,167.58,167.56,5.9713]
[1740173485052,0.03991415,167.58,167.55,6.01568721]
[1740173485358,0.03991415,167.58,167.55,0.04408721]
[1740173485558,0.03991415,167.58,167.55,1.86538721]
[1740173485760,0.03991415,167.58,167.56,5.9714]
[1740173486055,519.12414215,167.92,167.55,1.86538721]
[1740173486357,519.12414215,167.92,167.57,24.74684005]
[1740173486358,5.4545,167.73,167.57,24.74684005]
[1740173486554,1.00238489,167.72,167.57,24.74684005]
[1740173486755,5.4545,167.73,167.64,5.9685]
[1740173487457,6.01156381,167.7,167.67,0.03797923]
[1740173487655,0.04506381,167.7,167.67,0.03797923]
[1740173487861,0.04506381,167.7,167.57,24.74684005]
[1740173488162,5.4545,167.73,167.63,5.9689]
[1740173488666,0.04421232,167.7,167.64,5.9685]
[1740173488864,0.04421232,167.7,167.66,0.03836403]
[1740173489156,18.9045,167.73,167.64,5.9686]
[1740173489362,0.04352053,167.7,167.66,0.04087438]
[1740173489753,5.9666,167.7,167.66,0.04087438]
[1740173489956,0.0443077,167.7,167.66,0.04087438]
[1740173490366,6.0111077,167.7,167.66,0.04087438]
[1740173490558,0.0443077,167.7,167.66,0.04087438]
[1740173492063,6.0109077,167.7,167.66,0.04087438]
[1740173492466,0.0443077,167.7,167.66,0.04087438]
[1740173495464,5.967,167.69,167.66,0.04087438]
[1740173495664,0.0443077,167.7,167.56,127.76]
[1740173495962,15.89,167.71,167.56,127.76]
[1740173496268,15.89,167.71,167.58,24.74684005]
[1740173496458,15.89,167.71,167.61,24.74684005]
[1740173496664,15.89,167.71,167.64,24.74684005]
[1740173496865,0.04310181,167.68,167.64,24.7902933]
[1740173497265,1.81e-06,167.68,167.64,24.7902933]
[1740173497462,15.89,167.71,167.67,24.74684005]
[1740173497859,15.89,167.71,167.7,5.9664]
[1740173498462,15.48,167.76,167.73,5.9653]
[1740173498662,15.48,167.76,167.7,24.74684005]
[1740173498863,0.03810459,167.76,167.73,24.74684005]
[1740173499169,1.8832,167.8,167.73,24.74684005]
[1740173500168,5.9618,167.84,167.79,5.9632]
[1740173500367,0.04003579,167.78,167.76,24.74684005]
[1740173500561,1.7978,167.85,167.76,24.74684005]
[1740173500763,5.9621,167.83,167.77,5.9639]
[1740173501562,5.9626,167.81,167.76,24.74684005]
[1740173501767,0.04011654,167.82,167.78,0.04536286]
[1740173502669,0.04011654,167.82,167.72,24.74684005]
[1740173502858,1.7313,167.84,167.71,127.7]
[1740173503065,1.00259351,167.83,167.71,127.7]
[1740173503265,5.9628,167.81,167.71,127.7]
[1740173503564,1.7313,167.84,167.74,24.74684005]
[1740173503764,7.6931,167.84,167.74,24.74684005]
[1740173503959,0.0423675,167.81,167.77,0.04407912]
[1740173505167,0.0423675,167.81,167.71,127.7]
[1740173505369,0.0423675,167.81,167.72,14.9]
[1740173506067,5.9639,167.78,167.72,14.9]
[1740173506267,1.7313,167.84,167.75,0.04578929]
[1740173506268,195.7313,167.84,167.75,0.04578929]
[1740173506571,0.03996869,167.77,167.75,0.04578929]
[1740173506772,195.7313,167.84,167.75,0.04578929]
[1740173506976,0.03858264,167.78,167.75,0.04578929]
[1740173507271,0.03858264,167.78,167.77,5.9639]
[1740173507462,0.03858264,167.78,167.75,24.79262934]
[1740173509473,0.03858264,167.78,167.76,5.9643]
[1740173509671,0.03858264,167.78,167.75,24.79262934]
[1740173510468,1.7978,167.85,167.75,24.79262934]
[1740173510971,1.7978,167.85,167.78,5.9636]
[1740173511565,0.04227923,167.83,167.8,0.04150676]
[1740173514172,0.04227923,167.83,167.82,5.9622]
[1740173514767,7.14,167.88,167.8,0.04150676]
[1740173515075,7.14,167.88,167.8,1.75220676]
[1740173515974,0.04001331,167.86,167.8,1.75220676]
[1740173517477,6.00081331,167.86,167.81,5.9624]
[1740173517977,0.04001331,167.86,167.8,0.04150676]
[1740173518180,0.04001331,167.86,167.83,5.9618]
[1740173518369,0.04001331,167.86,167.8,0.04150676]
[1740173518571,0.04001331,167.86,167.83,5.9616]
[1740173519176,0.04001331,167.86,167.8,0.04150676]
[1740173519679,0.04001331,167.86,167.83,5.9615]
[1740173520074,0.04001331,167.86,167.8,0.04150676]
[1740173520276,0.04001331,167.86,167.82,5.962]
[1740173520675,5.9612,167.85,167.8,0.04150676]
[1740173520879,0.04001331,167.86,167.73,1.7217]
[1740173521186,1.7374,167.84,167.72,14.9]
[1740173521381,1.873,167.83,167.72,14.9]
[1740173522088,0.04361378,167.79,167.76,0.03986394]
[1740173522482,0.04361378,167.79,167.72,14.9]
[1740173522781,0.04361378,167.79,167.72,20.8657]
[1740173523283,0.04361378,167.79,167.72,14.9]
[1740173523479,0.04361378,167.79,167.74,0.04346575]
[1740173523676,5.9654,167.73,167.72,14.9]
[1740173523875,218.74684005,167.81,167.64,24.74684005]
[1740173524078,194.0,167.8,167.64,24.74684005]
[1740173524283,5.9657,167.72,167.67,5.9672]
[1740173524484,194.0,167.8,167.64,24.74684005]
[1740173524687,194.0,167.79,167.64,24.74684005]
[1740173524887,0.04223037,167.74,167.7,0.04488898]
[1740173525086,0.04223037,167.74,167.62,1.7197]
[1740173525288,5.9666,167.7,167.63,5.9686]
[1740173525485,5.9666,167.7,167.61,131.2984]
[1740173525687,8.68,167.74,167.61,129.4666]
[1740173525879,5.9677,167.67,167.61,129.4666]
[1740173526084,194.0,167.73,167.61,129.4666]
[1740173526285,0.03984995,167.66,167.64,5.9685]
[1740173526592,194.0,167.73,167.61,129.4666]
[1740173526785,0.04252237,167.67,167.63,0.04098984]
[1740173526986,5.9679,167.66,167.63,0.04098984]
[1740173527182,0.04252237,167.67,167.56,28.17514005]
[1740173527386,0.04252237,167.67,167.63,0.04302937]
[1740173527588,194.0,167.72,167.6,24.74684005]
[1740173527886,194.0,167.72,167.63,0.03877959]
[1740173528087,194.0,167.72,167.66,24.74684005]
[1740173528388,0.04181424,167.69,167.66,24.74684005]
[1740173528582,177.39822385,167.74,167.67,0.04003106]
[1740173528788,177.39822385,167.74,167.69,24.74684005]
[1740173529795,0.03973374,167.73,167.67,0.04003106]
[1740173531292,5.9657,167.72,167.67,0.04003106]
[1740173531790,5.9664,167.71,167.67,0.04003106]
[1740173531990,0.03973374,167.73,167.67,0.04003106]
[1740173532184,13.0,167.7,167.67,0.04003106]
[1740173533387,13.0,167.7,167.6,24.74684005]
[1740173534489,0.03975631,167.67,167.63,0.04458166]
[1740173534691,5.9684,167.65,167.63,0.04458166]
[1740173534891,0.03975631,167.67,167.63,0.04458166]
[1740173535387,5.9686,167.64,167.63,0.04458166]
[1740173535591,0.03975631,167.67,167.46,1.8421]
[1740173535787,5.9704,167.59,167.53,3.667]
[1740173535986,231.74684005,167.7,167.53,3.667]
[1740173536291,1.00092055,167.69,167.53,3.667]
[1740173536486,1.00092055,167.69,167.56,5.9713]
[1740173536694,0.03952987,167.63,167.59,0.04578596]
[1740173536890,5.97,167.6,167.59,0.04578596]
[1740173538987,194.0,167.62,167.52,5.9725]
[1740173539196,194.0,167.62,167.48,24.74684005]
[1740173539197,8.7,167.61,167.48,24.74684005]
[1740173539496,5.9711,167.57,167.48,24.74684005]
[1740173540087,8.7,167.61,167.48,24.74684005]
[1740173540297,0.04309772,167.54,167.51,24.79180904]
[1740173540797,0.0426346,167.54,167.51,24.79032871]
[1740173541096,5.9706,167.59,167.51,24.79032871]
[1740173541493,5.97,167.6,167.51,24.79032871]
[1740173541693,1.8498,167.64,167.54,24.74684005]
[1740173542291,1.8498,167.64,167.57,0.039451]
[1740173542496,0.0397497,167.61,167.57,0.039451]
[1740173544797,5.9707,167.58,167.57,0.039451]
[1740173547302,5.9707,167.58,167.48,7.7817]
[1740173547303,5.9732,167.52,167.48,7.7817]
[1740173547896,5.9732,167.52,167.48,1.8077]
[1740173548095,8.68,167.58,167.45,24.74684005]
[1740173548493,0.03948044,167.53,167.5,0.04073042]
[1740173548702,5.9736,167.51,167.5,0.04073042]
[1740173552405,6.01228044,167.53,167.5,0.04073042]
[1740173552803,5.9729,167.52,167.5,0.04073042]
[1740173553504,5.9732,167.51,167.5,0.04073042]
[1740173553902,0.03948044,167.53,167.5,0.04073042]
[1740173554706,5.9729,167.52,167.5,0.04073042]
[1740173555007,0.03948044,167.53,167.5,0.04073042]
[1740173555402,6.01198044,167.53,167.5,0.04073042]
[1740173555804,0.03948044,167.53,167.5,0.04073042]
[1740173556007,0.03948044,167.53,167.51,5.9732]
[1740173556206,0.03948044,167.53,167.5,0.04073042]
[1740173556902,5.9732,167.51,167.5,0.04073042]
[1740173557207,0.03948044,167.53,167.5,0.04073042]
[1740173557396,5.9729,167.52,167.5,0.04073042]
[1740173557596,0.03948044,167.53,167.5,0.04073042]
[1740173557796,0.03948044,167.53,167.5,6.01413042]
[1740173558008,0.03948044,167.53,167.5,0.04073042]
[1740173558508,5.9731,167.52,167.5,0.04073042]
[1740173558710,0.03948044,167.53,167.5,0.04073042]
[1740173558903,0.03948044,167.53,167.44,24.74684005]
[1740173558904,5.9736,167.51,167.41,7.7798]
[1740173559206,24.74684005,167.57,167.41,7.7798]
[1740173559503,1.00199243,167.56,167.41,7.7798]
[1740173560208,0.0376936,167.5,167.47,0.0454646]
[1740173565412,8.66,167.58,167.47,0.0454646]
[1740173565614,8.66,167.58,167.46,24.74684005]
[1740173565910,5.9714,167.57,167.49,5.9737]
[1740173566115,13.48,167.6,167.49,24.74684005]
[1740173566312,13.48,167.6,167.5,1.8381]
[1740173566512,0.0420299,167.57,167.53,0.03788387]
[1740173568720,6.0132299,167.57,167.53,0.03788387]
[1740173569020,0.0420299,167.57,167.53,0.03788387]
[1740173570121,5.9719,167.55,167.53,8.387e-05]
[1740173571216,1.8037,167.56,167.53,8.387e-05]